fUST/lending_fUST_20251202
["ID","MTS","AMOUNT","RATE_DAILY","PERIOD"]
[395371509,1764680216251,-500.0,8.048e-05,2]
[395371510,1764680216279,-500.0,8.048e-05,2]
[395371511,1764680216307,-500.0,8.048e-05,2]
[395371512,1764680216341,-500.0,8.048e-05,2]
[395371513,1764680216800,-137.68639096,8.048e-05,2]
[395371514,1764680219474,-362.31360904,8.048e-05,2]
[395371515,1764680219506,-500.0,8.048e-05,2]
[395371516,1764680219536,-500.0,8.048e-05,2]
[395371517,1764680219569,-500.0,8.048e-05,2]
[395371518,1764680219599,-500.0,8.048e-05,2]
[395371519,1764680219628,-500.0,8.048e-05,2]
[395371520,1764680219659,-500.0,8.048e-05,2]
[395371521,1764680219687,-500.0,8.048e-05,2]
[395371522,1764680219717,-500.0,8.048e-05,2]
[395371523,1764680219749,-500.0,8.048e-05,2]
[395371524,1764680219778,-25.38278192,8.048e-05,2]
[395371525,1764680220101,228.1969065,7.079e-05,2]
[395371526,1764680220184,-224.61721808,8.048e-05,2]
[395371527,1764680220216,-500.0,8.048e-05,2]
[395371528,1764680220247,-500.0,8.048e-05,2]
[395371529,1764680220277,-250.0,8.048e-05,2]
[395371530,1764680220310,-500.0,8.048e-05,2]
[395371531,1764680220340,-500.0,8.048e-05,2]
[395371532,1764680220370,-250.0,8.048e-05,2]
[395371533,1764680220401,-500.0,8.048e-05,2]
[395371534,1764680220430,-239.12111476,8.048e-05,2]
[395371535,1764680220461,-500.0,8.048e-05,2]
[395371536,1764680220490,-201.93286099,8.048e-05,2]
[395371537,1764680220518,-500.0,8.048e-05,2]
[395371538,1764680220546,-168.66761234,8.048e-05,2]
[395371539,1764680220599,-331.33238766,8.048e-05,2]
[395371540,1764680220629,-500.0,8.048e-05,2]
[395371541,1764680220659,-500.0,8.048e-05,2]
[395371542,1764680220690,-500.0,8.048e-05,2]
[395371543,1764680220719,-500.0,8.048e-05,2]
[395371544,1764680220752,-500.0,8.048e-05,2]
[395371545,1764680220781,-500.0,8.048e-05,2]
[395371546,1764680220810,-500.0,8.048e-05,2]
[395371547,1764680220842,-500.0,8.048e-05,2]
[395371548,1764680220874,-500.0,8.048e-05,2]
[395371549,1764680220903,-37.34522468,8.052e-05,2]
[395371550,1764680220997,-262.65477532,8.052e-05,2]
[395371551,1764680221027,-300.0,8.052e-05,2]
[395371552,1764680221058,-1200.0,8.052e-05,2]
[395371553,1764680221519,-600.0,8.053e-05,2]
[395371554,1764680221537,-6474.70044936,8.053e-05,2]
[395371555,1764680221551,-10000.01,8.053e-05,2]
[395371556,1764680221570,-10000.01,8.053e-05,2]
[395371557,1764680221615,-10000.01,8.053e-05,2]
[395371558,1764680221635,-10000.01,8.053e-05,2]
[395371559,1764680221803,-408.76538026,8.053e-05,2]
[395371580,1764680243016,-300.0,7.887e-05,2]
[395371581,1764680243049,-300.0,7.967e-05,2]
[395371582,1764680243080,-300.0,8.047e-05,2]
[395371583,1764680243144,-8200.01,8.053e-05,2]
[395371584,1764680243425,-10000.01,8.053e-05,2]
[395371586,1764680243608,-10000.01,8.053e-05,2]
[395371587,1764680243799,-10000.01,8.053e-05,2]
[395371589,1764680244050,-10000.01,8.053e-05,2]
[395371591,1764680244209,-10000.01,8.053e-05,2]
[395371592,1764680244371,-10000.01,8.053e-05,2]
[395371594,1764680244614,-10000.01,8.053e-05,2]
[395371596,1764680244797,-10000.01,8.053e-05,2]
[395371606,1764680258764,-275.82451112,7.972e-05,2]
[395371608,1764680260811,-296.53951754,7.892e-05,2]
[395371609,1764680262900,-281.95289885,7.892e-05,2]
[395371612,1764680264455,-365.11672412,7.892e-05,2]
[395371616,1764680267979,-204.85743532,7.892e-05,2]
[395371617,1764680273128,-221.89423562,7.892e-05,2]
[395371621,1764680289690,-43.63175927,7.892e-05,2]
[395371622,1764680289713,-183.26759626,7.972e-05,2]
[395371623,1764680292517,-226.16381632,7.972e-05,2]
[395371624,1764680294726,-184.76818524,7.972e-05,2]
[395371625,1764680296610,-225.77268511,7.972e-05,2]
[395371626,1764680305887,-318.19577667,7.892e-05,2]
[395371627,1764680305910,-42.30340417,7.972e-05,2]
[395371628,1764680309156,-257.71210223,7.972e-05,2]
[395371632,1764680334985,-18.18027027,7.972e-05,2]
[395371633,1764680335008,-136.7123959,8.012e-05,2]
[395371638,1764680345793,-163.13473081,7.932e-05,2]
[395371639,1764680345823,-163.13473081,8.012e-05,2]
[395371640,1764680345853,-300.99367954,8.034e-05,2]
[395371641,1764680345883,-1200.0,8.052e-05,2]
[395371642,1764680345913,-300.0,8.052e-05,2]
[395371643,1764680346002,-5745.48371768,8.053e-05,2]
[395371644,1764680353341,1411.8688602,0.00010777,3]
[395371645,1764680359327,-1078.25412052,7.972e-05,2]
[395371646,1764680359367,-7843.50175896,8.053e-05,2]
[395371647,1764680359633,-10000.01,8.053e-05,2]
[395371648,1764680359966,-1078.25412052,7.892e-05,2]
[395371649,1764680360007,-7843.50175896,8.053e-05,2]
[395371650,1764680360183,-10000.01,8.053e-05,2]
[395371651,1764680360413,-10000.01,8.053e-05,2]
[395371652,1764680360641,-10000.01,8.053e-05,2]
[395371653,1764680360874,-10000.01,8.053e-05,2]
[395371654,1764680361134,-10000.01,8.053e-05,2]
[395371662,1764680377575,-430.69178669,8.053e-05,2]
[395371663,1764680383330,-227.11697918,7.972e-05,2]
[395371664,1764680387942,-300.0,7.972e-05,2]
[395371665,1764680390853,-161.57926918,7.972e-05,2]
[395371666,1764680390880,-28.91150481,8.053e-05,2]
[395371667,1764680393001,-216.48052312,8.053e-05,2]
[395371669,1764680395735,-194.02701653,8.053e-05,2]
[395371670,1764680399570,-165.30925739,8.053e-05,2]
[395371681,1764680424477,-216.48052312,7.971e-05,2]
[395371682,1764680424507,-386.02091047,8.05e-05,2]
[395371683,1764680424539,-500.0,8.05e-05,2]
[395371684,1764680424570,-610.24183907,8.05e-05,2]
[395371685,1764680424599,-500.0,8.05e-05,2]
[395371686,1764680424629,-201.93286099,8.05e-05,2]
[395371687,1764680424659,-500.0,8.05e-05,2]
[395371688,1764680424688,-508.3651731,8.05e-05,2]
[395371689,1764680424717,-500.0,8.05e-05,2]
[395371690,1764680424747,-500.0,8.05e-05,2]
[395371691,1764680424778,-500.0,8.05e-05,2]
[395371692,1764680425067,-500.0,8.05e-05,2]
[395371693,1764680425099,-500.0,8.052e-05,2]
[395371694,1764680425131,-500.0,8.052e-05,2]
[395371695,1764680425162,-500.0,8.052e-05,2]
[395371696,1764680425195,-500.0,8.052e-05,2]
[395371697,1764680425227,-500.0,8.052e-05,2]
[395371698,1764680425260,-500.0,8.052e-05,2]
[395371699,1764680425291,-500.0,8.052e-05,2]
[395371700,1764680425323,-500.0,8.052e-05,2]
[395371701,1764680425354,-500.0,8.052e-05,2]
[395371702,1764680425473,-500.0,8.052e-05,2]
[395371703,1764680425504,-500.0,8.052e-05,2]
[395371704,1764680425535,-249.48729795,8.052e-05,2]
[395371705,1764680425565,-326.75519286,8.052e-05,2]
[395371706,1764680425595,-500.0,8.052e-05,2]
[395371707,1764680425626,-500.0,8.052e-05,2]
[395371708,1764680425657,-500.0,8.052e-05,2]
[395371709,1764680425689,-500.0,8.052e-05,2]
[395371710,1764680425720,-500.0,8.052e-05,2]
[395371711,1764680425754,-500.0,8.052e-05,2]
[395371712,1764680425787,-347.52501838,8.052e-05,2]
[395371713,1764680425887,-152.47498162,8.052e-05,2]
[395371714,1764680425922,-500.0,8.052e-05,2]
[395371715,1764680425954,-500.0,8.052e-05,2]
[395371716,1764680425987,-500.0,8.052e-05,2]
[395371717,1764680426017,-500.0,8.052e-05,2]
[395371718,1764680426049,-500.0,8.052e-05,2]
[395371719,1764680426082,-500.0,8.052e-05,2]
[395371720,1764680426116,-500.0,8.052e-05,2]
[395371721,1764680426145,-300.0,8.052e-05,2]
[395371722,1764680426172,-300.0,8.052e-05,2]
[395371723,1764680426200,-300.0,8.052e-05,2]
[395371724,1764680426230,-300.0,8.052e-05,2]
[395371725,1764680426610,-500.0,8.05e-05,2]
[395371726,1764680426641,-1200.0,8.052e-05,2]
[395371727,1764680426964,-500.0,8.05e-05,2]
[395371728,1764680427368,-500.0,8.05e-05,2]
[395371729,1764680427451,-6300.01,8.053e-05,2]
[395371730,1764680427476,-10000.01,8.053e-05,2]
[395371731,1764680427496,-500.0,8.053e-05,2]
[395371732,1764680427516,-9000.01,8.053e-05,2]
[395371733,1764680427547,-500.0,8.05e-05,2]
[395371734,1764680427556,-9500.01,8.053e-05,2]
[395371735,1764680427571,-10000.01,8.053e-05,2]
[395371736,1764680427585,-500.0,8.053e-05,2]
[395371737,1764680427610,-9000.01,8.053e-05,2]
[395371740,1764680452871,-500.0,8.05e-05,2]
[395371741,1764680452902,-500.0,8.05e-05,2]
[395371742,1764680452940,-500.0,8.052e-05,2]
[395371743,1764680452970,-500.0,8.052e-05,2]
[395371744,1764680453000,-500.0,8.052e-05,2]
[395371745,1764680453029,-500.0,8.052e-05,2]
[395371746,1764680453060,-500.0,8.052e-05,2]
[395371747,1764680453089,-217.14630929,8.052e-05,2]
[395371748,1764680453118,-500.0,8.052e-05,2]
[395371749,1764680453148,-500.0,8.052e-05,2]
[395371750,1764680453180,-65.71738142,8.052e-05,2]
[395371751,1764680453304,-434.28261858,8.052e-05,2]
[395371752,1764680453335,-500.0,8.052e-05,2]
[395371753,1764680453366,-500.0,8.052e-05,2]
[395371754,1764680453398,-500.0,8.052e-05,2]
[395371755,1764680453430,-500.0,8.052e-05,2]
[395371756,1764680453462,-500.0,8.052e-05,2]
[395371757,1764680453495,-214.05166762,8.052e-05,2]
[395371758,1764680453527,-500.0,8.052e-05,2]
[395371759,1764680453557,-500.0,8.052e-05,2]
[395371760,1764680453592,-500.0,8.052e-05,2]
[395371761,1764680453626,-163.40519249,8.052e-05,2]
[395371762,1764680453762,-376.53104262,8.052e-05,2]
[395371763,1764680453798,-500.0,8.052e-05,2]
[395371764,1764680453837,-500.0,8.052e-05,2]
[395371765,1764680453869,-500.0,8.052e-05,2]
[395371766,1764680453904,-500.0,8.052e-05,2]
[395371767,1764680453938,-500.0,8.052e-05,2]
[395371768,1764680453971,-500.0,8.052e-05,2]
[395371769,1764680454004,-500.0,8.052e-05,2]
[395371770,1764680454036,-500.0,8.052e-05,2]
[395371771,1764680454069,-500.0,8.052e-05,2]
[395371772,1764680454526,-310.8136612,8.052e-05,2]
[395371773,1764680454541,-189.1863388,8.052e-05,2]
[395371774,1764680454551,-310.8136612,8.052e-05,2]
[395371775,1764680454566,-189.1863388,8.052e-05,2]
[395371776,1764680454576,-57.76157596,8.052e-05,2]
[395371777,1764680454856,-220.0,8.052e-05,2]
[395371778,1764680457245,-127.64126769,8.052e-05,2]
[395371779,1764680457267,-249.84430958,8.052e-05,2]
[395371780,1764680459650,-250.15569042,8.052e-05,2]
[395371781,1764680459672,-182.60404871,8.052e-05,2]
[395371782,1764680459692,-67.24026087,8.052e-05,2]
[395371783,1764680463836,-159.20196074,8.051e-05,2]
[395371791,1764680469026,-171.46622612,7.971e-05,2]
[395371794,1764680472912,-235.57215521,7.971e-05,2]
[395371795,1764680475468,-269.43530574,7.891e-05,2]
[395371797,1764680477612,-300.00214169,7.891e-05,2]
[395371798,1764680478999,-106.50020903,7.891e-05,2]
[395371799,1764680479021,-216.86703691,7.971e-05,2]
[395371800,1764680481670,-3642.15896856,7.971e-05,2]
[395371801,1764680481703,-140.79803926,8.051e-05,2]
[395371802,1764680481733,-432.75973913,8.052e-05,2]
[395371803,1764680481763,-500.0,8.052e-05,2]
[395371804,1764680481793,-68.5765061,8.052e-05,2]
[395371805,1764680481911,-431.4234939,7.891e-05,2]
[395371806,1764680481944,-3210.73547466,7.891e-05,2]
[395371807,1764680481975,-431.4234939,8.052e-05,2]
[395371808,1764680482005,-500.0,8.052e-05,2]
[395371809,1764680482036,-334.58910792,8.052e-05,2]
[395371810,1764680482065,-260.3102017,8.052e-05,2]
[395371811,1764680482095,-25.89344364,8.052e-05,2]
[395371812,1764680482159,-474.10655636,8.052e-05,2]
[395371813,1764680482192,-214.5379956,8.052e-05,2]
[395371814,1764680482224,-500.0,8.052e-05,2]
[395371815,1764680482255,-500.0,8.052e-05,2]
[395371816,1764680482285,-500.0,8.052e-05,2]
[395371817,1764680482317,-500.0,8.052e-05,2]
[395371818,1764680482346,-600.572479,8.052e-05,2]
[395371819,1764680482376,-500.0,8.052e-05,2]
[395371820,1764680482407,-500.0,8.052e-05,2]
[395371821,1764680482437,-538.46036196,8.052e-05,2]
[395371822,1764680482551,-500.0,8.052e-05,2]
[395371823,1764680482583,-500.0,8.052e-05,2]
[395371824,1764680482611,-500.0,8.052e-05,2]
[395371825,1764680482640,-500.0,8.052e-05,2]
[395371826,1764680482669,-500.0,8.052e-05,2]
[395371827,1764680482699,-500.0,8.052e-05,2]
[395371828,1764680482730,-454.82846122,8.052e-05,2]
[395371829,1764680482762,-500.0,8.052e-05,2]
[395371830,1764680482791,-500.0,8.052e-05,2]
[395371831,1764680482822,-500.0,8.052e-05,2]
[395371832,1764680482983,-500.0,8.052e-05,2]
[395371833,1764680483013,-500.0,8.052e-05,2]
[395371834,1764680483045,-500.0,8.052e-05,2]
[395371835,1764680483077,-500.0,8.052e-05,2]
[395371836,1764680483109,-250.0,8.052e-05,2]
[395371837,1764680483145,-177.09365639,8.052e-05,2]
[395371838,1764680483753,-53.08617411,8.053e-05,2]
[395371839,1764680483769,-500.0,8.053e-05,2]
[395371840,1764680483784,-250.0,8.053e-05,2]
[395371841,1764680483798,-177.09365639,8.053e-05,2]
[395371842,1764680483813,-5145.82268722,8.053e-05,2]
[395371843,1764680483845,-165.33395438,8.053e-05,2]
[395371844,1764680483861,-10000.01,8.053e-05,2]
[395371845,1764680483885,-10000.01,8.053e-05,2]
[395371846,1764680483903,-10000.01,8.053e-05,2]
[395371850,1764680496690,-3435.91231474,7.972e-05,2]
[395371851,1764680496713,-3128.18537052,7.972e-05,2]
[395371852,1764680496924,-10000.01,8.053e-05,2]
[395371853,1764680497058,-10000.01,8.053e-05,2]
[395371854,1764680497192,-10000.01,8.053e-05,2]
[395371857,1764680509651,-1369.3096497,7.971e-05,2]
[395371858,1764680509683,-177.84138655,8.052e-05,2]
[395371859,1764680509712,-214.70003935,8.052e-05,2]
[395371860,1764680509741,-500.0,8.052e-05,2]
[395371861,1764680509770,-476.7682238,8.052e-05,2]
[395371862,1764680509882,-4522.7714012,8.053e-05,2]
[395371863,1764680509909,-10000.01,8.053e-05,2]
[395371864,1764680510058,-10000.01,8.053e-05,2]
[395371865,1764680510282,-10000.01,8.053e-05,2]
[395371866,1764680510459,-10000.01,8.053e-05,2]
[395371867,1764680510782,-10000.01,8.053e-05,2]
[395371872,1764680529695,-158.3084655,7.971e-05,2]
[395371874,1764680541858,-141.6915345,7.971e-05,2]
[395371875,1764680541903,-300.0,8.052e-05,2]
[395371876,1764680541975,-9116.626931,8.053e-05,2]
[395371877,1764680542190,-500.0,8.052e-05,2]
[395371878,1764680542231,-214.5379956,8.052e-05,2]
[395371879,1764680542271,-214.70003935,8.052e-05,2]
[395371880,1764680542379,-8141.5339301,8.053e-05,2]
[395371881,1764680542648,-500.0,8.052e-05,2]
[395371882,1764680542736,-500.0,8.052e-05,2]
[395371883,1764680542775,-500.0,8.052e-05,2]
[395371884,1764680542784,-8000.01,8.053e-05,2]
[395371885,1764680542800,-500.0,8.053e-05,2]
[395371886,1764680542825,-9000.01,8.053e-05,2]
[395371887,1764680542840,-10000.01,8.053e-05,2]
[395371888,1764680543973,-321.90067097,8.052e-05,2]
[395371893,1764680546705,-178.09932903,8.052e-05,2]
[395371894,1764680546735,-500.0,8.052e-05,2]
[395371895,1764680546767,-500.0,8.052e-05,2]
[395371896,1764680546797,-500.0,8.052e-05,2]
[395371898,1764680546827,-538.46036196,8.052e-05,2]
[395371899,1764680546929,-5566.89061802,8.053e-05,2]
[395371907,1764680558105,-309.72845965,7.972e-05,2]
[395371912,1764680566153,-191.14585261,7.892e-05,2]
[395371913,1764680569611,-274.72315691,7.813e-05,2]
[395371914,1764680572469,-25.27684309,7.813e-05,2]
[395371915,1764680572491,-331.98134669,7.892e-05,2]
[395371918,1764680575160,-269.75818485,7.892e-05,2]
[395371919,1764680576505,-484.31312287,7.892e-05,2]
[395371920,1764680580004,-176.74524341,7.892e-05,2]
[395371922,1764680582324,153.06,1.8e-05,2]
[395371923,1764680582639,153.06,3.3e-05,2]
[395371924,1764680582977,153.06,4.8e-05,2]
[395371926,1764680583378,153.06,6.3e-05,2]
[395371930,1764680592448,-205.0,7.813e-05,2]
[395371931,1764680594999,-274.1654369,7.813e-05,2]
[395371938,1764680645858,162.41,1.8e-05,2]
[395371939,1764680646200,162.41,3.8e-05,2]
[395371940,1764680646552,162.41,5.8e-05,2]
[395371941,1764680648758,162.4,1.75e-05,2]
[395371957,1764680705091,162.41,1.8e-05,2]
[395371964,1764680758930,80000.0,0.0002,30]
[395371966,1764680778572,162.41,1.8e-05,2]
[395371968,1764680824703,162.41,1.8e-05,2]
[395371997,1764680949668,-256.33557696,7.43e-05,2]
[395371998,1764680953724,-171.25636894,7.43e-05,2]
[395371999,1764680964730,-269.94955677,7.43e-05,2]
[395372000,1764680964752,-121.39017472,7.505e-05,2]
[395372001,1764680967146,-269.94955677,7.356e-05,2]
[395372002,1764680967167,-576.15132795,7.505e-05,2]
[395372003,1764680967187,-315.05065693,7.543e-05,2]
[395372004,1764680967206,-697.54150267,7.581e-05,2]
[395372005,1764680967225,-341.16712291,7.777e-05,2]
[395372006,1764680967244,-226.66591243,7.777e-05,2]
[395372007,1764680967263,-206.76552777,7.872e-05,2]
[395372008,1764680982074,192.2248517,7.801e-05,2]
[395372009,1764680983562,65.03231435,7.014e-05,2]
[395372010,1764681007108,210.0,6.944e-05,2]
[395372011,1764681007842,-210.0,7.014e-05,2]
[395372012,1764681007864,-35.02324028,7.014e-05,2]
[395372056,1764681032353,-89.82768997,7.014e-05,2]
[395372057,1764681032362,-192.2248517,7.88e-05,2]
[395372058,1764681032371,-300.0,7.95e-05,2]
[395372059,1764681032379,-300.0,7.95e-05,2]
[395372060,1764681032388,-1200.0,7.95e-05,2]
[395372061,1764681032397,-273.0,7.95e-05,2]
[395372062,1764681032406,-1200.0,7.951e-05,2]
[395372063,1764681032415,-8127.86373794,7.953e-05,2]
[395372064,1764681032425,-477.79490419,7.953e-05,2]
[395372065,1764681032449,-253563.66155265,7.953e-05,2]
[395372094,1764681037836,-655.05964893,7.953e-05,2]
[395372101,1764681037896,-19565.79107116,7.953e-05,2]
[395372344,1764681040334,-2e-08,7.873e-05,2]
[395372576,1764681043058,-404.63637287,7.873e-05,2]
[395372578,1764681043070,-2470.86493121,7.873e-05,2]
[395372581,1764681043087,-2913.47731066,7.873e-05,2]
[395372586,1764681043128,-7883.45929748,7.873e-05,2]
[395372588,1764681043141,-1385.35077602,7.873e-05,2]
[395372590,1764681043150,-500.0,7.95e-05,2]
[395372592,1764681043160,-500.0,7.95e-05,2]
[395372594,1764681043169,-500.0,7.95e-05,2]
[395372596,1764681043178,-500.0,7.95e-05,2]
[395372597,1764681043188,-210.71508454,7.95e-05,2]
[395372599,1764681043198,-500.0,7.95e-05,2]
[395372601,1764681043208,-500.0,7.95e-05,2]
[395372603,1764681043218,-500.0,7.95e-05,2]
[395372605,1764681043227,-500.0,7.95e-05,2]
[395372607,1764681043237,-500.0,7.95e-05,2]
[395372609,1764681043247,-500.0,7.95e-05,2]
[395372611,1764681043256,-525.89344364,7.95e-05,2]
[395372613,1764681043267,-500.0,7.95e-05,2]
[395372615,1764681043277,-500.0,7.95e-05,2]
[395372617,1764681043287,-4.45808996,7.95e-05,2]
[395372619,1764681043298,-414.45031978,7.95e-05,2]
[395372834,1764681045844,-81.09159026,7.95e-05,2]
[395372836,1764681045854,-650.0,7.95e-05,2]
[395372838,1764681045863,-500.0,7.95e-05,2]
[395372840,1764681045873,-369.03992634,7.95e-05,2]
[395372842,1764681045882,-500.0,7.95e-05,2]
[395372844,1764681045892,-500.0,7.95e-05,2]
[395372846,1764681045901,-500.0,7.95e-05,2]
[395372849,1764681045910,-376.3364834,7.95e-05,2]
[395374155,1764681062667,214.78,1.8e-05,2]
[395374832,1764681123762,180.07,1.8e-05,2]
[395374833,1764681124050,180.07,2e-05,2]
[395374834,1764681124339,180.07,2.3e-05,2]
[395374835,1764681124653,180.07,2.5e-05,2]
[395374836,1764681124951,180.07,2.8e-05,2]
[395374837,1764681125246,180.07,3e-05,2]
[395374838,1764681125838,180.07,3.3e-05,2]
[395374839,1764681125993,180.07,3.5e-05,2]
[395374840,1764681126298,180.07,3.8e-05,2]
[395374841,1764681126593,180.07,4e-05,2]
[395374842,1764681126893,180.07,4.3e-05,2]
[395374843,1764681127186,180.07,4.5e-05,2]
[395374844,1764681127682,180.07,4.8e-05,2]
[395374845,1764681128009,180.07,5e-05,2]
[395374846,1764681128343,180.07,5.3e-05,2]
[395374847,1764681128650,180.07,5.5e-05,2]
[395374848,1764681128960,180.07,5.8e-05,2]
[395374849,1764681129288,180.07,6e-05,2]
[395374850,1764681129646,180.07,6.3e-05,2]
[395374851,1764681129931,180.07,6.5e-05,2]
[395374852,1764681130213,180.07,6.8e-05,2]
[395374855,1764681130517,180.07,7e-05,2]
[395374856,1764681149114,179.85,1.75e-05,2]
[395374859,1764681187567,212.1534275,6.887e-05,2]
[395374861,1764681192703,151.93,1.8e-05,2]
[395374862,1764681193069,151.93,2.1e-05,2]
[395374863,1764681193371,151.93,2.5e-05,2]
[395374864,1764681193699,151.93,2.9e-05,2]
[395374865,1764681194201,151.93,3.3e-05,2]
[395374866,1764681194283,151.93,3.7e-05,2]
[395374867,1764681194589,151.93,4.1e-05,2]
[395374868,1764681194893,151.93,4.5e-05,2]
[395374869,1764681195555,151.93,4.9e-05,2]
[395374870,1764681195607,151.93,5.3e-05,2]
[395374871,1764681195887,151.93,5.7e-05,2]
[395374872,1764681196221,151.93,6.1e-05,2]
[395374873,1764681196572,151.93,6.5e-05,2]
[395374874,1764681196873,151.93,6.9e-05,2]
[395374875,1764681202030,164.34343858,0.000201,120]
[395374876,1764681202538,164.34343858,0.000201,120]
[395374877,1764681202968,164.34343858,0.000201,120]
[395374878,1764681203588,164.34343858,0.000201,120]
[395374879,1764681203905,164.34343858,0.000201,120]
[395374880,1764681204359,164.34343858,0.000201,120]
[395374881,1764681205246,164.34343858,0.000201,120]
[395374884,1764681253183,151.94,1.8e-05,2]
[395374885,1764681253527,151.94,2.5e-05,2]
[395374886,1764681253844,151.94,3.2e-05,2]
[395374887,1764681254166,151.94,3.9e-05,2]
[395374888,1764681254487,151.94,4.6e-05,2]
[395374889,1764681255211,151.94,5.4e-05,2]
[395374890,1764681255543,151.94,6.1e-05,2]
[395374891,1764681255884,151.94,6.8e-05,2]
[395374892,1764681260456,151.89,1.75e-05,2]
[395374896,1764681306612,151.94,1.8e-05,2]
[395374897,1764681307064,151.94,3.3e-05,2]
[395374898,1764681307263,151.94,4.8e-05,2]
[395374899,1764681307586,151.94,6.3e-05,2]
[395374903,1764681347560,8024.84,6.822e-05,2]
[395374904,1764681347582,10000.01,6.822e-05,2]
[395374905,1764681347603,10000.01,6.822e-05,2]
[395374906,1764681347625,4731.1698719,6.822e-05,2]
[395374907,1764681356748,-151.94,7.425e-05,2]
[395374909,1764681365973,154.03,2e-05,2]
[395374910,1764681366308,154.03,5e-05,2]
[395374916,1764681379457,787.5011063,6.825e-05,2]
[395374938,1764681425972,154.04,1.8e-05,2]
[395374940,1764681427483,154.03,1.75e-05,2]
[395374952,1764681436195,239.33372383,7.21e-05,2]
[395374962,1764681442270,326.51261024,7.357e-05,2]
[395374978,1764681464333,326.51261024,7.357e-05,2]
[395374979,1764681483128,250.0,0.0002,30]
[395374980,1764681484791,154.04,1.8e-05,2]
[395374981,1764681486537,326.51261024,7.357e-05,2]
[395374985,1764681508591,326.51261024,7.357e-05,2]
[395374988,1764681530688,326.51261024,7.357e-05,2]
[395374990,1764681540509,353.81132269,7.222e-05,2]
[395374995,1764681553154,326.51261024,7.357e-05,2]
[395375002,1764681577073,326.51261024,7.357e-05,2]
[395375010,1764681599202,326.51261024,7.357e-05,2]
[395375016,1764681608129,180.0,0.0001946,120]
[395375021,1764681622283,539.51261024,7.357e-05,2]
[395375034,1764681644881,539.51261024,7.357e-05,2]
[395375052,1764681667778,539.51261024,7.357e-05,2]
[395375053,1764681676715,-326.51261024,7.431e-05,2]
[395375054,1764681676766,-213.0,7.431e-05,2]
[395375066,1764681690941,326.51261024,7.394e-05,2]
[395375071,1764681699412,326.51261024,7.394e-05,2]
[395375092,1764681715659,326.51261024,7.394e-05,2]
[395375104,1764681738698,326.51261024,7.394e-05,2]
[395375113,1764681761896,326.51261024,7.394e-05,2]
[395375120,1764681785560,326.51261024,7.394e-05,2]
[395375130,1764681808312,326.51261024,7.394e-05,2]
[395375134,1764681831796,326.51261024,7.394e-05,2]
[395375141,1764681854235,326.51261024,7.394e-05,2]
[395375143,1764681877932,326.51261024,7.394e-05,2]
[395375147,1764681900471,326.51261024,7.394e-05,2]
[395375156,1764681923842,326.51261024,7.394e-05,2]
[395375157,1764681924730,-326.51261024,7.607e-05,2]
[395375158,1764681924753,-164.53804103,7.744e-05,2]
[395375159,1764681926616,-255.50162668,7.744e-05,2]
[395375160,1764681926639,-46.78806624,7.744e-05,2]
[395375164,1764681984710,-235.76836963,7.667e-05,2]
[395375165,1764681986389,-294.14551372,7.667e-05,2]
[395375166,1764681988980,-232.39800936,7.667e-05,2]
[395375167,1764681991508,-212.28183505,7.667e-05,2]
[395375168,1764681994162,-311.95107694,7.667e-05,2]
[395375169,1764681996491,-176.47291411,7.667e-05,2]
[395375170,1764681998506,-354.55355527,7.667e-05,2]
[395375171,1764682000320,-235.83899824,7.667e-05,2]
[395375172,1764682000480,-224.78771901,7.744e-05,2]
[395375174,1764682003314,-187.75871626,7.744e-05,2]
[395375176,1764682004780,-205.22697952,7.744e-05,2]
[395375183,1764682035552,254.6016383,7.667e-05,2]
[395375184,1764682038107,353.86425405,7.581e-05,2]
[395375210,1764682058116,254.6016383,7.667e-05,2]
[395375212,1764682059693,-87.97927513,7.744e-05,2]
[395375213,1764682059720,-166.62236317,7.744e-05,2]
[395375214,1764682059743,-40.57362643,7.744e-05,2]
[395375215,1764682062170,-382.55064983,7.744e-05,2]
[395375219,1764682065194,-243.20720629,7.744e-05,2]
[395375220,1764682068377,-42.95185309,7.744e-05,2]
[395375221,1764682068399,-325.66018143,7.744e-05,2]